fUSD/lending_fUSD_20240427
["ID","MTS","AMOUNT","RATE_DAILY","PERIOD"]
[323735143,1714222241209,-500.0,0.00011123,2]
[323735144,1714222241218,-500.0,0.00011123,2]
[323735145,1714222241227,-500.0,0.00011123,2]
[323735146,1714222241236,-264.06824218,0.00011123,2]
[323735147,1714222241245,-500.0,0.00011123,2]
[323735148,1714222241256,-483.58694588,0.00011123,2]
[323735149,1714222241266,-606.08635884,0.00011123,2]
[323735150,1714222241274,-490.97293598,0.00011123,2]
[323735151,1714222241283,-500.0,0.00011123,2]
[323735152,1714222241292,-500.0,0.00011123,2]
[323735153,1714222241301,-500.0,0.00011123,2]
[323735154,1714222241310,-500.0,0.00011123,2]
[323735155,1714222241319,-500.0,0.00011123,2]
[323735156,1714222241328,-500.0,0.00011123,2]
[323735157,1714222241337,-500.0,0.00011123,2]
[323735158,1714222241346,-500.0,0.00011123,2]
[323735159,1714222241355,-500.0,0.00011123,2]
[323735160,1714222241364,-500.0,0.00011123,2]
[323735161,1714222241374,-500.0,0.00011123,2]
[323735162,1714222241383,-500.0,0.00011123,2]
[323735163,1714222241392,-383.22349632,0.00011123,2]
[323735164,1714222241402,-500.0,0.00011123,2]
[323735165,1714222241411,-500.0,0.00011123,2]
[323735166,1714222241420,-500.0,0.00011123,2]
[323735167,1714222241429,-209.11600586,0.00011123,2]
[323735168,1714222241438,-500.0,0.00011123,2]
[323735169,1714222241447,-500.0,0.00011123,2]
[323735170,1714222241457,-500.0,0.00011123,2]
[323735171,1714222241466,-1513.91,0.00011123,2]
[323735172,1714222241475,-500.0,0.00011123,2]
[323735173,1714222241484,-507.13,0.00011123,2]
[323735174,1714222241493,-500.0,0.00011123,2]
[323735175,1714222241502,-500.0,0.00011123,2]
[323735176,1714222241511,-500.0,0.00011123,2]
[323735177,1714222241521,-500.0,0.00011123,2]
[323735178,1714222241530,-500.0,0.00011123,2]
[323735179,1714222241540,-500.0,0.00011123,2]
[323735180,1714222241549,-500.0,0.00011123,2]
[323735181,1714222241559,-500.0,0.00011123,2]
[323735182,1714222241568,-500.0,0.00011123,2]
[323735183,1714222241578,-500.0,0.00011123,2]
[323735184,1714222241587,-500.0,0.00011123,2]
[323735185,1714222241596,-500.0,0.00011123,2]
[323735186,1714222241606,-500.0,0.00011123,2]
[323735187,1714222241615,-500.0,0.00011123,2]
[323735188,1714222241624,-500.0,0.00011123,2]
[323735189,1714222241633,-500.0,0.00011123,2]
[323735190,1714222241642,-500.0,0.00011123,2]
[323735191,1714222241651,-500.0,0.00011123,2]
[323735192,1714222241660,-500.0,0.00011123,2]
[323735193,1714222241669,-500.0,0.00011123,2]
[323735194,1714222241679,-295.0,0.00011123,2]
[323735195,1714222241688,-730.67,0.00011123,2]
[323735196,1714222241698,-500.0,0.00011123,2]
[323735197,1714222241708,-500.0,0.00011123,2]
[323735198,1714222241717,-500.0,0.00011123,2]
[323735199,1714222241726,-2324.32,0.00011123,2]
[323735200,1714222241737,-500.0,0.00011123,2]
[323735201,1714222241746,-500.0,0.00011123,2]
[323735202,1714222241756,-500.0,0.00011123,2]
[323735203,1714222241765,-500.0,0.00011123,2]
[323735204,1714222241774,-500.0,0.00011123,2]
[323735205,1714222241783,-500.0,0.00011123,2]
[323735206,1714222241793,-500.0,0.00011123,2]
[323735207,1714222241803,-500.0,0.00011123,2]
[323735208,1714222241813,-1101.54,0.00011123,2]
[323735209,1714222241825,-828.88,0.00011123,2]
[323735210,1714222241834,-217.4535101,0.00011123,2]
[323735211,1714222241845,-500.0,0.00011123,2]
[323735212,1714222241855,-500.0,0.00011123,2]
[323735213,1714222241864,-500.0,0.00011123,2]
[323735214,1714222241873,-500.0,0.00011123,2]
[323735215,1714222241882,-500.0,0.00011123,2]
[323735216,1714222241892,-500.0,0.00011123,2]
[323735217,1714222241901,-500.0,0.00011123,2]
[323735218,1714222241911,-480.85361685,0.00011123,2]
[323735219,1714222241919,-500.0,0.00011123,2]
[323735220,1714222241928,-500.0,0.00011123,2]
[323735221,1714222241938,-517.23,0.00011123,2]
[323735222,1714222241947,-598.81346895,0.00011123,2]
[323735223,1714222241956,-509.70872684,0.00011123,2]
[323735224,1714222241966,-500.0,0.00011123,2]
[323735225,1714222241975,-500.0,0.00011123,2]
[323735226,1714222241984,-686.53,0.00011123,2]
[323735227,1714222241994,-500.0,0.00011123,2]
[323735228,1714222242003,-500.0,0.00011123,2]
[323735229,1714222242012,-500.0,0.00011123,2]
[323735230,1714222242021,-500.0,0.00011123,2]
[323735231,1714222242030,-500.0,0.00011123,2]
[323735232,1714222242039,-500.0,0.00011123,2]
[323735233,1714222242049,-500.0,0.00011123,2]
[323735236,1714222242259,-500.0,0.00011123,2]
[323735237,1714222242269,-374.79,0.00011123,2]
[323735238,1714222242278,-500.0,0.00011123,2]
[323735239,1714222242287,-500.0,0.00011123,2]
[323735240,1714222242297,-578.89596849,0.00011123,2]
[323735241,1714222242307,-500.0,0.00011123,2]
[323735243,1714222242316,-500.0,0.00011123,2]
[323735244,1714222242325,-505.0,0.00011123,2]
[323735245,1714222242334,-334.3870736,0.00011123,2]
[323735246,1714222242344,-500.0,0.00011123,2]
[323735247,1714222242353,-500.0,0.00011123,2]
[323735248,1714222242362,-500.0,0.00011123,2]
[323735249,1714222242371,-500.0,0.00011123,2]
[323735250,1714222242380,-500.0,0.00011123,2]
[323735251,1714222242390,-500.0,0.00011123,2]
[323735252,1714222242399,-500.0,0.00011123,2]
[323735253,1714222242408,-539.96,0.00011123,2]
[323735254,1714222242417,-500.0,0.00011123,2]
[323735256,1714222242426,-522.83428785,0.00011123,2]
[323735258,1714222242435,-2069.15,0.00011123,2]
[323735260,1714222242444,-500.0,0.00011123,2]
[323735262,1714222242453,-500.0,0.00011123,2]
[323735263,1714222242462,-500.0,0.00011123,2]
[323735264,1714222242472,-500.0,0.00011123,2]
[323735265,1714222242481,-500.0,0.00011123,2]
[323735266,1714222242490,-500.0,0.00011123,2]
[323735267,1714222242499,-500.0,0.00011123,2]
[323735268,1714222242508,-500.0,0.00011123,2]
[323735269,1714222242517,-522.18,0.00011123,2]
[323735270,1714222242526,-500.0,0.00011123,2]
[323735271,1714222242535,-572.14,0.00011123,2]
[323735272,1714222242544,-500.0,0.00011123,2]
[323735273,1714222242554,-500.0,0.00011123,2]
[323735274,1714222242563,-500.0,0.00011123,2]
[323735275,1714222242573,-500.0,0.00011123,2]
[323735276,1714222242582,-500.0,0.00011123,2]
[323735277,1714222242591,-500.0,0.00011123,2]
[323735278,1714222242600,-500.0,0.00011123,2]
[323735279,1714222242609,-512.51,0.00011123,2]
[323735280,1714222242618,-500.0,0.00011123,2]
[323735281,1714222242628,-500.0,0.00011124,2]
[323735282,1714222242637,-500.0,0.00011124,2]
[323735283,1714222242646,-500.0,0.00011124,2]
[323735284,1714222242656,-500.0,0.00011124,2]
[323735285,1714222242665,-199.0748314,0.00011169,2]
[323735286,1714222242674,-1106.3617113,0.00011169,2]
[323735287,1714222242683,-1409.3025824,0.00011169,2]
[323735288,1714222242693,-189.09138709,0.00011177,2]
[323735289,1714222242702,-595.46130853,0.00011177,2]
[323735290,1714222242722,-280.62050714,0.00011177,2]
[323735298,1714222243205,-667.7648,0.00011022,2]
[323735299,1714222243215,-348.3352,0.00011122,2]
[323735300,1714222243260,36.91182471,8.39e-05,2]
[323735301,1714222243281,113.47817529,8.39e-05,2]
[323735320,1714222245795,-150.39,0.00010654,2]
[323735321,1714222245805,-413.97,0.00011,2]
[323735322,1714222245814,-784.2648,0.00011122,2]
[323735323,1714222245823,-500.0,0.00011122,2]
[323735324,1714222245833,-500.0,0.00011122,2]
[323735325,1714222245843,-500.0,0.00011122,2]
[323735326,1714222245852,-76.04335476,0.00011177,2]
[323735334,1714222664531,746.87,0.0001063,10]
[323735335,1714222933701,152.16,8.219e-05,2]
[323735340,1714223151465,684.63,0.0001063,10]
[323735341,1714223198096,250.0,9.978e-05,2]
[323735411,1714223270672,542.03417704,7.982e-05,2]
[323735412,1714223278981,-207.83486764,0.00010052,2]
[323735413,1714223279010,-3792.16513236,0.00010052,2]
[323735414,1714223281024,-3552.1599977,0.00010052,2]
[323735415,1714223281048,-447.8400023,0.00010053,2]
[323735416,1714223283882,944.18297447,9.978e-05,2]
[323735417,1714223285695,1998.1446732,9.978e-05,2]
[323735418,1714223285718,415.67613377,9.978e-05,2]
[323735422,1714223416758,152.16,8.219e-05,2]
[323735432,1714223431610,-643.404235,0.00010054,2]
[323735433,1714223431620,-281.98,0.00010055,2]
[323735434,1714223431629,-54.223325,0.00010056,2]
[323735435,1714223431768,-216.656675,0.00010056,2]
[323735436,1714223431777,-238.53331529,0.00010056,2]
[323735442,1714223432034,-1099.33301702,0.00010056,2]
[323735444,1714223432047,-3326.82366769,0.00010056,2]
[323735446,1714223432056,-347.01,0.00010062,2]
[323735448,1714223432065,-474.48,0.00010119,2]
[323735450,1714223432074,-167.59,0.00010141,2]
[323735452,1714223432083,-160.8,0.00010264,2]
[323735453,1714223432092,-152.16,0.00010607,2]
[323735454,1714223432102,-288.51985909,0.0001063,2]
[323735455,1714223432111,-298.84757904,0.0001063,2]
[323735456,1714223432120,-499.99,0.0001063,2]
[323735457,1714223432129,-150.0,0.000107,2]
[323735458,1714223432138,-413.97,0.000107,2]
[323735459,1714223432147,-413.97,0.000107,2]
[323735460,1714223432155,-337.43311716,0.000107,2]
[323735461,1714223432517,-76.53688284,0.000107,2]
[323735462,1714223432530,-376.22204545,0.000107,2]
[323735463,1714223432540,-37.74795455,0.000107,2]
[323735464,1714223432552,-296.75951807,0.000107,2]
[323735465,1714223432564,-117.21048193,0.000107,2]
[323735466,1714223432573,-413.97,0.00010792,2]
[323735467,1714223432582,-266.94910561,0.00010792,2]
[323735468,1714223432594,-147.02089439,0.00010792,2]
[323735469,1714223432603,-413.97,0.00010792,2]
[323735470,1714223432612,-413.97,0.00010792,2]
[323735471,1714223432621,-413.97,0.00010792,2]
[323735472,1714223432630,-413.97,0.00010792,2]
[323735473,1714223432639,-413.97,0.00010792,2]
[323735474,1714223432648,-264.15,0.00010792,2]
[323735475,1714223432657,-413.97,0.000108,2]
[323735476,1714223432666,-155.0,0.000109,2]
[323735477,1714223432675,-413.97,0.000109,2]
[323735478,1714223432683,-413.97,0.000109,2]
[323735479,1714223432692,-413.97,0.000109,2]
[323735480,1714223432701,-413.97,0.000109,2]
[323735481,1714223432710,-413.97,0.000109,2]
[323735482,1714223432719,-413.97,0.000109,2]
[323735483,1714223432728,-413.97,0.000109,2]
[323735484,1714223432737,-413.97,0.000109,2]
[323735485,1714223432746,-413.97,0.000109,2]
[323735486,1714223432755,-413.97,0.000109,2]
[323735487,1714223432765,-61.41970134,0.000109,2]
[323735488,1714223432776,-352.55029866,0.000109,2]
[323735489,1714223432786,-413.97,0.000109,2]
[323735490,1714223432797,-2750.0,0.00011,3]
[323735491,1714223432806,-413.97,0.00011,2]
[323735492,1714223432815,-413.97,0.00011,2]
[323735493,1714223432824,-413.97,0.00011,2]
[323735494,1714223432833,-413.97,0.00011,2]
[323735495,1714223432842,-413.97,0.00011,2]
[323735496,1714223432851,-413.97,0.00011,2]
[323735497,1714223432860,-150.0,0.00011066,2]
[323735498,1714223432869,-171.54,0.00011066,2]
[323735499,1714223432877,-162.9,0.00011066,2]
[323735500,1714223432886,-517.9,0.00011066,2]
[323735501,1714223432895,-150.0,0.00011066,2]
[323735502,1714223432905,-162.9,0.00011066,2]
[323735503,1714223432914,-150.0,0.00011066,2]
[323735504,1714223432923,-150.0,0.00011066,2]
[323735505,1714223432931,-150.0,0.00011066,2]
[323735506,1714223432940,-162.9,0.00011066,2]
[323735507,1714223432949,-162.9,0.00011066,2]
[323735508,1714223432958,-150.0,0.00011066,2]
[323735509,1714223432966,-150.0,0.00011066,2]
[323735510,1714223432975,-150.0,0.00011066,2]
[323735511,1714223432984,-162.9,0.00011066,2]
[323735512,1714223432994,-73.63713365,0.00011066,2]
[323735513,1714223433005,-89.26286635,0.00011066,2]
[323735514,1714223433014,-162.9,0.00011066,2]
[323735515,1714223433023,-83.58215933,0.00011066,2]
[323735521,1714223437816,-79.31784067,0.00011066,2]
[323735522,1714223437827,-162.9,0.00011066,2]
[323735523,1714223437837,-162.9,0.00011066,2]
[323735524,1714223437846,-409.88215933,0.00011066,2]
[323735525,1714223437897,-59.83784067,0.00011066,2]
[323735526,1714223437907,-5536.81028781,0.00011078,2]
[323735527,1714223437917,-177.05834528,0.00011078,2]
[323735528,1714223437927,-220.73595913,0.00011078,2]
[323735529,1714223437937,-613.09526478,0.00011079,2]
[323735530,1714223437946,-178.6392603,0.00011079,2]
[323735531,1714223437956,-2416.03503619,0.00011079,2]
[323735532,1714223437966,-220.73595912,0.00011079,2]
[323735533,1714223437976,-205.26,0.00011096,2]
[323735534,1714223437985,-1006.0,0.000111,2]
[323735535,1714223437995,-24000.0,0.000111,2]
[323735536,1714223438004,-184.0,0.0001111,2]
[323735537,1714223438013,-1000.0,0.00011114,2]
[323735538,1714223438022,-500.0,0.00011114,2]
[323735539,1714223438031,-500.0,0.00011122,2]
[323735540,1714223438041,-500.0,0.00011122,2]
[323735541,1714223438050,-500.0,0.00011122,2]
[323735542,1714223438061,-500.0,0.00011122,2]
[323735543,1714223438070,-581.52996297,0.00011122,2]
[323735544,1714223438080,-500.0,0.00011122,2]
[323735545,1714223438090,-500.0,0.00011122,2]
[323735546,1714223438099,-500.0,0.00011122,2]
[323735547,1714223438109,-500.0,0.00011122,2]
[323735548,1714223438118,-500.0,0.00011122,2]
[323735549,1714223438127,-500.0,0.00011122,2]
[323735550,1714223438137,-500.0,0.00011122,2]
[323735551,1714223438148,-500.0,0.00011122,2]
[323735552,1714223438158,-500.0,0.00011122,2]
[323735553,1714223438168,-361.07544757,0.00011122,2]
[323735554,1714223438178,-500.0,0.00011122,2]
[323735555,1714223438188,-500.0,0.00011122,2]
[323735556,1714223438197,-500.0,0.00011122,2]
[323735557,1714223438206,-500.0,0.00011122,2]
[323735558,1714223438216,-500.0,0.00011122,2]
[323735559,1714223438225,-500.0,0.00011122,2]
[323735560,1714223438234,-500.0,0.00011122,2]
[323735561,1714223438243,-500.0,0.00011122,2]
[323735562,1714223438253,-500.0,0.00011122,2]
[323735563,1714223438262,-500.0,0.00011122,2]
[323735564,1714223438271,-500.0,0.00011122,2]
[323735565,1714223438280,-500.0,0.00011122,2]
[323735566,1714223438289,-500.0,0.00011122,2]
[323735567,1714223438298,-1588.45,0.00011122,2]
[323735568,1714223438309,-204.15863884,0.00011122,2]
[323735569,1714223438318,-500.0,0.00011122,2]
[323735570,1714223438327,-500.0,0.00011122,2]
[323735571,1714223438337,-500.0,0.00011122,2]
[323735572,1714223438347,-500.0,0.00011122,2]
[323735573,1714223438356,-500.0,0.00011122,2]
[323735574,1714223438366,-500.0,0.00011122,2]
[323735575,1714223438375,-500.0,0.00011122,2]
[323735576,1714223438384,-500.0,0.00011122,2]
[323735577,1714223438393,-500.0,0.00011122,2]
[323735578,1714223438402,-500.0,0.00011122,2]
[323735579,1714223438411,-500.0,0.00011122,2]
[323735580,1714223438421,-500.0,0.00011122,2]
[323735581,1714223438430,-500.0,0.00011122,2]
[323735582,1714223438440,-500.0,0.00011122,2]
[323735583,1714223438452,-500.0,0.00011122,2]
[323735584,1714223438461,-500.0,0.00011122,2]
[323735585,1714223438470,-500.0,0.00011122,2]
[323735586,1714223438479,-500.0,0.00011122,2]
[323735587,1714223438489,-500.0,0.00011122,2]
[323735588,1714223438499,-500.0,0.00011122,2]
[323735589,1714223438508,-500.0,0.00011122,2]
[323735590,1714223438517,-439.56850667,0.00011122,2]
[323735591,1714223438531,-500.0,0.00011122,2]
[323735592,1714223438541,-500.0,0.00011122,2]
[323735593,1714223438550,-633.57680109,0.00011122,2]
[323735594,1714223438562,-500.0,0.00011122,2]
[323735595,1714223438571,-308.49,0.00011122,2]
[323735596,1714223438581,-500.0,0.00011122,2]
[323735597,1714223438591,-212.19371863,0.00011122,2]
[323735598,1714223438602,-500.0,0.00011122,2]
[323735599,1714223438612,-500.0,0.00011122,2]
[323735600,1714223438621,-500.0,0.00011122,2]
[323735601,1714223438630,-500.0,0.00011122,2]
[323735602,1714223438639,-500.0,0.00011122,2]
[323735603,1714223438648,-500.0,0.00011122,2]
[323735604,1714223438658,-500.0,0.00011122,2]
[323735605,1714223438667,-500.0,0.00011122,2]
[323735606,1714223438676,-500.0,0.00011122,2]
[323735607,1714223438685,-500.0,0.00011122,2]
[323735608,1714223438694,-500.0,0.00011122,2]
[323735609,1714223438704,-1450.83,0.00011122,2]
[323735610,1714223438713,-500.0,0.00011122,2]
[323735611,1714223438722,-500.0,0.00011122,2]
[323735612,1714223438731,-500.0,0.00011122,2]
[323735613,1714223438740,-500.0,0.00011122,2]
[323735614,1714223438750,-500.0,0.00011122,2]
[323735615,1714223438759,-500.0,0.00011122,2]
[323735616,1714223438768,-500.0,0.00011122,2]
[323735617,1714223438778,-500.0,0.00011122,2]
[323735618,1714223438787,-265.07492572,0.00011122,2]
[323735619,1714223438797,-525.9477692,0.00011122,2]
[323735620,1714223438807,-500.0,0.00011122,2]
[323735621,1714223438816,-500.0,0.00011122,2]
[323735622,1714223438826,-500.0,0.00011122,2]
[323735623,1714223438836,-1055.64,0.00011122,2]
[323735624,1714223438845,-500.0,0.00011122,2]
[323735625,1714223438854,-37720.0,0.00011123,2]
[323735626,1714223438864,-2290.0,0.00011123,2]
[323735627,1714223438873,-5734.0,0.00011123,2]
[323735628,1714223438882,-5924.865,0.00011123,2]
[323735629,1714223438891,-1056.0,0.00011123,2]
[323735630,1714223438900,-447.15642642,0.00011123,2]
[323735631,1714223438910,-500.0,0.00011123,2]
[323735632,1714223438919,-255.01783715,0.00011123,2]
[323735633,1714223438929,-500.0,0.00011123,2]
[323735634,1714223438938,-1000.0,0.00011123,2]
[323735635,1714223438948,-1000.0,0.00011123,2]
[323735636,1714223438957,-1000.0,0.00011123,2]
[323735637,1714223438967,-1000.0,0.00011123,2]
[323735638,1714223438976,-1000.0,0.00011123,2]
[323735639,1714223438986,-1000.0,0.00011123,2]
[323735640,1714223438995,-1000.0,0.00011123,2]
[323735641,1714223439004,-1000.0,0.00011123,2]
[323735642,1714223439013,-1000.0,0.00011123,2]
[323735643,1714223439024,-1000.0,0.00011123,2]
[323735644,1714223439033,-1000.0,0.00011123,2]
[323735645,1714223439042,-1000.0,0.00011123,2]
[323735646,1714223439053,-1000.0,0.00011123,2]
[323735647,1714223439062,-619.8262,0.00011123,2]
[323735648,1714223439071,-10000.0,0.00011132,2]
[323735649,1714223439080,-10000.0,0.00011132,2]
[323735650,1714223439089,-5055.0,0.00011132,2]
[323735651,1714223439097,-154.242,0.00011156,2]
[323735652,1714223439107,-1106.2110191,0.00011167,2]
[323735653,1714223439116,-633.0908879,0.00011167,2]
[323735654,1714223439125,-1072.2678148,0.00011168,2]
[323735655,1714223439134,-5264.6573473,0.00011168,2]
[323735656,1714223439143,-9269.0956706,0.0001117,2]
[323735657,1714223439153,-961.9664874,0.00011172,2]
[323735658,1714223439162,-4738.1126467,0.00011172,2]
[323735659,1714223439171,-1010.0127342,0.00011172,2]
[323735660,1714223439180,-500.0,0.00011172,2]
[323735661,1714223439189,-500.0,0.00011172,2]
[323735662,1714223439199,-303.86911694,0.00011172,2]
[323735663,1714223439208,-500.0,0.00011172,2]
[323735664,1714223439218,-500.0,0.00011175,2]
[323735665,1714223439227,-500.0,0.00011175,2]
[323735666,1714223439237,-500.0,0.00011175,2]
[323735667,1714223439246,-573.18,0.00011175,2]
[323735668,1714223439255,-438.35322619,0.00011175,2]
[323735669,1714223439264,-500.0,0.00011175,2]
[323735670,1714223439275,-500.0,0.00011175,2]
[323735671,1714223439284,-500.0,0.00011175,2]
[323735672,1714223439293,-43.98991082,0.00011175,2]
[323735681,1714223439740,-456.01008918,0.00011175,2]
[323735682,1714223439750,-2481.06,0.00011175,2]
[323735683,1714223439759,-1032.79,0.00011175,2]
[323735684,1714223439768,-1733.14,0.00011175,2]
[323735685,1714223439777,-500.0,0.00011175,2]
[323735686,1714223439786,-339.89991082,0.00011175,2]
[323735687,1714223439801,-569.89984797,0.00011175,2]
[323735688,1714223439813,-1706.87024121,0.00011175,2]
[323735689,1714223439823,-599.85,0.00011175,2]
[323735690,1714223439832,-500.0,0.00011175,2]
[323735691,1714223439842,-696.17,0.00011175,2]
[323735692,1714223439851,-2194.2,0.00011175,2]
[323735693,1714223439860,-500.0,0.00011175,2]
[323735694,1714223439870,-500.0,0.00011175,2]
[323735695,1714223439879,-743.87,0.00011175,2]
[323735696,1714223439889,-128.51975879,0.00011175,2]
[323735697,1714223440117,-258.16788,0.00011175,2]
[323735698,1714223440130,-113.31236121,0.00011175,2]
[323735699,1714223440139,-500.0,0.00011175,2]
[323735700,1714223440148,-883.66,0.00011175,2]
[323735701,1714223440158,-500.0,0.00011176,2]
[323735702,1714223440167,-8750.75,0.00011176,2]
[323735703,1714223440176,-1085.41,0.00011176,2]
[323735704,1714223440185,-234.8627749,0.00011176,2]
[323735705,1714223440219,-265.1372251,0.00011176,2]
[323735706,1714223440228,-700.23,0.00011176,2]
[323735707,1714223440237,-500.0,0.00011176,2]
[323735708,1714223440246,-617.16220056,0.00011176,2]
[323735709,1714223440295,-254.96779944,0.00011176,2]
[323735710,1714223440305,-135.65979877,0.00011176,2]
[323735711,1714223440316,-1257.24020123,0.00011176,2]
[323735712,1714223440326,-500.0,0.00011176,2]
[323735713,1714223440335,-500.0,0.00011176,2]
[323735714,1714223440344,-500.0,0.00011176,2]
[323735715,1714223440353,-500.0,0.00011176,2]
[323735716,1714223440362,-1908.33,0.00011176,2]
[323735717,1714223440372,-500.0,0.00011176,2]
[323735718,1714223440381,-919.43,0.00011176,2]
[323735719,1714223440390,-500.0,0.00011176,2]
[323735720,1714223440400,-181.54464752,0.00011176,2]
[323735721,1714223440409,-2395.13810775,0.00011176,2]
[323735722,1714223440419,-500.0,0.00011176,2]
[323735723,1714223440429,-641.6,0.00011176,2]
[323735724,1714223440438,-500.0,0.00011176,2]
[323735725,1714223440447,-977.78,0.00011176,2]
[323735726,1714223440456,-876.81,0.00011176,2]
[323735727,1714223440465,-500.0,0.00011176,2]
[323735728,1714223440475,-944.77415243,0.00011176,2]
[323735729,1714223440484,-500.0,0.00011176,2]
[323735730,1714223440493,-500.0,0.00011176,2]
[323735731,1714223440502,-1124.21,0.00011176,2]
[323735732,1714223440513,-3293.75,0.00011176,2]
[323735733,1714223440526,-500.0,0.00011176,2]
[323735734,1714223440539,-657.1,0.00011176,2]
[323735735,1714223440551,-826.87,0.00011176,2]
[323735736,1714223440562,-1149.57,0.00011176,2]
[323735737,1714223440574,-500.0,0.00011176,2]
[323735738,1714223440584,-668.66,0.00011176,2]
[323735739,1714223440595,-536.51,0.00011176,2]
[323735740,1714223440605,-500.0,0.00011176,2]
[323735741,1714223440615,-500.0,0.00011176,2]
[323735742,1714223440624,-1309.98307877,0.00011176,2]
[323735768,1714223443091,-293.33957425,0.00011172,2]
[323735833,1714223449666,3432.16386623,9.978e-05,2]
[323735834,1714223449692,4000.0,9.978e-05,2]
[323735835,1714223449718,4000.0,9.978e-05,2]
[323735836,1714223449743,4000.0,9.978e-05,2]
[323735837,1714223449768,4000.0,9.978e-05,2]
[323735838,1714223449792,4000.0,9.978e-05,2]
[323735839,1714223449816,4000.0,9.978e-05,2]
[323735840,1714223449840,639.95324427,9.978e-05,2]
[323735846,1714223657880,574.5515,9.9e-05,2]
[323735847,1714223681504,2785.49525573,9.973e-05,2]
[323735848,1714223681526,4000.0,9.973e-05,2]
[323735849,1714223681549,4000.0,9.973e-05,2]
[323735850,1714223681579,4000.0,9.973e-05,2]
[323735851,1714223681619,4000.0,9.973e-05,2]
[323735852,1714223681663,4000.0,9.973e-05,2]
[323735853,1714223681706,1114.50474427,9.973e-05,2]
[323735854,1714223686977,206.89,9.973e-05,2]
[323735855,1714223696272,2308.62536712,9.9e-05,2]
[323735856,1714223716205,369.97988861,9.9e-05,2]
[323735857,1714223737882,627.57,0.0001063,10]
[323735858,1714223743544,-706.80422125,9.899e-05,2]
[323735859,1714223743565,-220.23822039,9.9e-05,2]
[323735860,1714223743587,-3072.95755836,9.999e-05,2]
[323735861,1714223746262,-4000.0,9.9e-05,2]
[323735862,1714223747389,-4000.0,9.9e-05,2]
[323735863,1714223748665,-4000.0,9.9e-05,2]
[323735864,1714223749780,-4000.0,9.9e-05,2]
[323735865,1714223750787,-760.76839017,9.9e-05,2]
[323735866,1714223750807,-155.07112014,9.9e-05,2]
[323735867,1714223750828,-3084.16048969,9.9e-05,2]
[323735868,1714223752013,-4000.0,9.9e-05,2]
[323735869,1714223752937,-4000.0,9.9e-05,2]
[323735870,1714223753878,-4000.0,9.9e-05,2]
[323735871,1714223754918,-4000.0,9.9e-05,2]
[323735872,1714223805321,-1095.36503582,9.9e-05,2]
[323735873,1714223805345,-866.68214589,9.9e-05,2]
[323735874,1714223805368,-2037.95281829,9.9e-05,2]
[323735875,1714223806407,-4000.0,9.9e-05,2]
[323735876,1714223807548,-1281.62703401,9.9e-05,2]
[323735877,1714223807569,-2718.37296599,9.999e-05,2]
[323735878,1714223808564,-1480.10947335,9.999e-05,2]
[323735879,1714223816227,281.17984554,9.9e-05,2]
[323735880,1714223820128,866.58019575,9.9e-05,2]
[323735881,1714223820688,247.82015446,7.92e-05,2]
[323735882,1714223821930,1124.3103309,9.9e-05,2]
[323735883,1714223821951,691.57003389,9.9e-05,2]